bitfinex/quotes_SOLUSD_20251025
["timestamp","ask_amount","ask_price","bid_price","bid_amount"]
[1761414641707,0.09,192.46,192.45,40.5895507]
[1761414642315,0.09,192.46,192.45,56.66218075]
[1761414643390,0.09,192.46,192.45,79.54218075]
[1761414645710,0.2,192.47,192.46,10.87647521]
[1761414645911,0.2,192.47,192.46,13.02724626]
[1761414646392,0.2,192.47,192.46,15.10608626]
[1761414647717,0.2,192.47,192.46,20.30197111]
[1761414648611,0.2,192.47,192.46,56.14197111]
[1761414656925,0.2,192.47,192.46,56.96058643]
[1761414659417,0.2,192.47,192.46,21.12058643]
[1761414659719,0.2,192.47,192.46,56.94058643]
[1761414660727,0.2,192.47,192.46,21.12058643]
[1761414660902,0.2,192.47,192.46,56.94058643]
[1761414661426,0.2,192.47,192.46,21.12058643]
[1761414661720,0.2,192.47,192.46,56.94058643]
[1761414662339,0.2,192.47,192.46,21.12058643]
[1761414662621,0.2,192.47,192.46,45.37411122]
[1761414663321,0.2,192.47,192.46,46.05411122]
[1761414663722,0.2,192.47,192.46,45.37411122]
[1761414664716,0.87,192.47,192.46,45.37411122]
[1761414665108,0.2,192.47,192.46,45.37411122]
[1761414665424,0.87,192.47,192.46,45.37411122]
[1761414666420,0.87,192.47,192.46,43.29527122]
[1761414667640,0.87,192.47,192.46,2.27938637]
[1761414667808,0.87,192.47,192.46,35.82]
[1761414670813,0.87,192.47,192.46,38.09938637]
[1761414677242,0.87,192.47,192.46,35.82]
[1761414682045,0.87,192.47,192.44,7.47578112]
[1761414682240,0.66,192.46,192.44,7.47578112]
[1761414682445,0.66,192.46,192.45,35.82]
[1761414683040,0.66,192.46,192.44,7.47578112]
[1761414683448,0.66,192.46,192.45,35.82]
[1761414683747,0.66,192.46,192.44,7.47578112]
[1761414683945,0.66,192.46,192.45,35.82]
[1761414695253,0.66,192.46,192.43,7.47602815]
[1761414695455,0.66,192.46,192.44,35.82]
[1761414695661,0.66,192.46,192.45,35.82]
[1761414698654,5.85598541,192.46,192.41,5.88706476]
[1761414698866,5.85598541,192.46,192.43,35.82]
[1761414699040,0.66,192.45,192.43,35.82]
[1761414699959,0.66,192.45,192.39,0.69]
[1761414700160,0.66,192.45,192.41,2.27938637]
[1761414705063,0.66,192.45,192.41,7.47657715]
[1761414711193,0.66,192.45,192.42,2.27938637]
[1761414711403,0.66,192.45,192.42,2.99938637]
[1761414711878,5.39564146,192.47,192.42,2.99938637]
[1761414712200,0.66,192.46,192.42,2.99938637]
[1761414712490,0.66,192.46,192.43,0.72]
[1761414714089,0.66,192.46,192.42,2.99938637]
[1761414715386,0.66,192.46,192.42,2.27938637]
[1761414715798,0.66,192.46,192.42,2.99938637]
[1761414716702,0.66,192.46,192.42,2.18028233]
[1761414716886,0.66,192.46,192.42,1.46028233]
[1761414717077,0.66,192.46,192.43,0.72]
[1761414719002,0.66,192.46,192.42,5.19694759]
[1761414722098,0.66,192.46,192.42,5.86694759]
[1761414723106,0.66,192.46,192.42,5.19694759]
[1761414723308,0.66,192.46,192.43,0.67]
[1761414726609,7.53592379,192.47,192.43,0.67]
[1761414727205,0.68,192.46,192.43,0.67]
[1761414732308,5.87592892,192.46,192.43,0.67]
[1761414734504,5.19592892,192.46,192.43,0.67]
[1761414735011,0.88,192.47,192.43,0.67]
[1761414735392,0.88,192.47,192.43,5.86669022]
[1761414736114,0.2,192.47,192.44,0.67]
[1761414737008,0.2,192.47,192.44,5.86638918]
[1761414737488,0.68,192.46,192.41,5.19723507]
[1761414737696,1.46028233,192.45,192.42,35.82]
[1761414738109,2.14028233,192.45,192.42,36.49]
[1761414738810,5.3956796,192.47,192.37,13.28140191]
[1761414738811,1.46028233,192.43,192.37,13.28140191]
[1761414739111,0.68,192.44,192.38,37.95028233]
[1761414739313,0.68,192.44,192.39,0.67]
[1761414739692,1.46028233,192.41,192.37,5.86807103]
[1761414739897,1.46028233,192.42,192.39,35.86]
[1761414740095,2.12028233,192.43,192.39,35.86]
[1761414740298,1.46028233,192.43,192.39,35.86]
[1761414740495,1.46028233,192.44,192.39,36.57]
[1761414740904,0.66,192.43,192.39,36.57]
[1761414741718,0.66,192.43,192.39,35.86]
[1761414741898,2.12028233,192.43,192.39,35.86]
[1761414742420,0.66,192.42,192.39,35.86]
[1761414742891,0.66,192.42,192.39,36.57]
[1761414743417,5.19615484,192.45,192.39,35.86]
[1761414743594,1.46028233,192.44,192.39,36.57]
[1761414743795,2.12028233,192.44,192.39,36.57]
[1761414743994,0.66,192.43,192.39,36.57]
[1761414747220,0.66,192.43,192.39,35.86]
[1761414747414,0.66,192.43,192.4,0.71]
[1761414747797,0.66,192.43,192.39,36.57]
[1761414747999,0.66,192.45,192.4,0.71]
[1761414748198,2.12028233,192.45,192.4,0.71]
[1761414749519,30.19649299,192.45,192.4,0.71]
[1761414749699,29.53649299,192.45,192.4,0.71]
[1761414749901,0.66,192.44,192.4,5.9074892]
[1761414751617,0.66,192.44,192.41,0.71]
[1761414753333,5.85644514,192.44,192.41,0.71]
[1761414753624,5.85644514,192.44,192.4,0.71]
[1761414753826,5.85644514,192.44,192.41,0.71]
[1761414763631,5.19644514,192.44,192.41,0.71]
[1761414767319,5.85644514,192.44,192.41,0.71]
[1761414773142,5.19644514,192.44,192.41,0.71]
[1761414779541,5.90644514,192.44,192.41,0.71]
[1761414779943,5.19644514,192.44,192.41,0.71]
[1761414780137,5.90644514,192.44,192.41,0.71]
[1761414780754,5.19644514,192.44,192.41,0.71]
[1761414782485,5.90644514,192.44,192.41,0.71]
[1761414783157,5.19644514,192.44,192.39,41.05772488]
[1761414783364,2.99217486,192.43,192.38,0.67]
[1761414783570,2.99217486,192.43,192.39,35.86]
[1761414783739,0.71,192.42,192.39,35.86]
[1761414784445,5.9071155,192.42,192.39,35.86]
[1761414785363,5.9071155,192.42,192.39,36.53]
[1761414799059,5.9066949,192.43,192.39,36.53]
[1761414801679,21.51097047,192.43,192.39,36.53]
[1761414807884,20.80097047,192.43,192.39,36.53]
[1761414808079,0.71,192.42,192.39,36.53]
[1761414808385,20.80097047,192.43,192.39,36.53]
[1761414808579,21.51097047,192.43,192.39,36.53]
[1761414808984,21.51097047,192.43,192.39,35.86]
[1761414809180,21.51097047,192.43,192.4,0.69]
[1761414817792,15.60427557,192.43,192.4,0.69]
[1761414818087,0.71,192.42,192.39,35.86]
[1761414818667,0.71,192.42,192.39,36.55]
[1761414819074,28.78701991,192.42,192.39,36.55]
[1761414820895,28.07701991,192.42,192.4,0.69]
[1761414821402,28.78701991,192.42,192.39,35.86]
[1761414821712,28.78701991,192.42,192.39,36.55]
[1761414823498,28.78701991,192.42,192.39,0.69]
[1761414823674,28.78701991,192.42,192.39,36.53]
[1761414824489,28.07701991,192.42,192.39,36.53]
[1761414824790,28.78701991,192.42,192.39,36.53]
[1761414826795,28.78701991,192.42,192.39,35.84]
[1761414826997,0.71,192.41,192.39,35.84]
[1761414827197,28.07701991,192.42,192.39,35.84]
[1761414827403,28.78701991,192.42,192.39,35.84]
[1761414827702,28.78701991,192.42,192.39,0.69]
[1761414827891,44.39210716,192.42,192.39,0.69]
[1761414829206,44.39210716,192.42,192.38,36.53]
[1761414829804,44.39210716,192.42,192.39,0.69]
[1761414837106,44.39210716,192.42,192.38,35.84]
[1761414837295,5.91724246,192.41,192.38,36.52]
[1761414837623,2.28217486,192.4,192.35,0.68]
[1761414837793,18.60969768,192.4,192.35,0.68]
[1761414838113,0.72,192.39,192.35,0.68]
[1761414838630,16.32752282,192.39,192.35,0.68]
[1761414840405,16.32752282,192.39,192.35,2.96217486]
[1761414840602,21.52533167,192.39,192.36,0.69]
[1761414842615,16.32752282,192.39,192.36,0.69]
[1761414842819,15.60752282,192.39,192.36,0.69]
[1761414843020,15.60752282,192.39,192.36,2.15137676]
[1761414843227,5.19758887,192.4,192.37,2.15137676]
[1761414843522,20.80429975,192.4,192.37,2.15137676]
[1761414843823,20.80429975,192.4,192.38,0.69]
[1761414846526,5.19723507,192.41,192.38,0.69]
[1761414846825,20.80394595,192.41,192.38,0.69]
[1761414848720,21.46394595,192.41,192.38,0.69]
[1761414848908,21.46394595,192.41,192.37,0.69]
[1761414849420,5.19767826,192.4,192.37,0.69]
[1761414850328,5.85767826,192.4,192.37,0.69]
[1761414852932,28.73767826,192.4,192.37,0.69]
[1761414854638,44.34438914,192.4,192.37,0.69]
[1761414854812,28.73767826,192.4,192.37,0.69]
[1761414855626,28.07767826,192.4,192.37,0.69]
[1761414856818,28.73767826,192.4,192.37,0.69]
[1761414857434,28.07767826,192.4,192.37,0.69]
[1761414861923,43.68438914,192.4,192.37,0.69]
[1761414863932,5.19724949,192.41,192.37,0.69]
[1761414864251,38.48508725,192.41,192.37,5.88829505]
[1761414864651,38.48508725,192.41,192.38,0.71]
[1761414871850,43.68234754,192.41,192.38,0.71]
[1761414875794,44.38234754,192.41,192.38,0.71]
[1761414882492,43.68234754,192.41,192.38,0.71]
[1761414883291,44.38234754,192.41,192.38,0.71]
[1761414885895,43.68234754,192.41,192.38,0.71]
[1761414886099,28.07726029,192.41,192.38,0.71]
[1761414886394,34.73716349,192.41,192.38,0.71]
[1761414886782,28.77726029,192.41,192.38,0.71]
[1761414889689,28.07726029,192.41,192.38,0.71]
[1761414898201,22.88,192.41,192.38,0.71]
[1761414898388,15.60508725,192.42,192.39,1.46137676]
[1761414898901,5.19644602,192.44,192.4,0.69]
[1761414899201,41.07283568,192.44,192.4,0.69]
[1761414900704,41.07283568,192.44,192.4,2.97223279]
[1761414900898,41.07283568,192.44,192.41,0.67]
[1761414902206,44.02506847,192.44,192.41,0.67]
[1761414902406,44.02506847,192.44,192.4,0.67]
[1761414905404,43.35506847,192.44,192.4,0.67]
[1761414905589,5.86673257,192.43,192.4,0.67]
[1761414906410,8.14896536,192.43,192.4,0.67]
[1761414906710,23.75242932,192.43,192.4,0.67]
[1761414907691,21.47019653,192.43,192.4,0.67]
[1761414908310,15.60346396,192.43,192.4,0.67]
[1761414908500,25.83223279,192.44,192.4,0.67]
[1761414908701,41.43569675,192.44,192.4,0.67]
[1761414909316,39.15346396,192.44,192.4,0.67]
[1761414909515,44.3499718,192.44,192.4,0.67]
[1761414915222,0.67,192.43,192.4,0.67]
[1761414915523,43.6799718,192.44,192.4,0.67]
[1761414915711,44.3499718,192.44,192.4,0.67]
[1761414921829,28.74650784,192.44,192.4,0.67]
[1761414922129,15.60346396,192.43,192.4,0.67]
[1761414946854,16.27346396,192.43,192.4,0.67]
[1761414949958,15.60346396,192.43,192.4,0.67]
[1761414950855,16.31346396,192.43,192.4,0.67]
[1761414953361,15.60346396,192.43,192.4,0.67]
[1761414957549,16.31346396,192.43,192.4,0.67]
[1761414958362,15.60346396,192.43,192.4,0.67]
[1761414970378,15.60346396,192.43,192.4,5.86749698]
[1761414970877,15.60346396,192.43,192.41,0.66]
[1761414973079,22.88,192.44,192.41,0.66]
[1761414973463,38.48265245,192.44,192.41,0.66]
[1761414974274,39.16265245,192.44,192.41,0.66]
[1761414974775,38.48265245,192.44,192.41,0.66]
[1761414975589,15.60265245,192.44,192.42,35.82]
[1761414975773,22.88,192.46,192.42,35.82]
[1761414975962,39.16102966,192.46,192.43,0.66]
[1761414978091,38.48102966,192.46,192.43,0.66]
[1761414980770,39.20102966,192.46,192.43,0.66]
[1761414981082,38.48102966,192.46,192.43,0.66]
[1761414982486,39.20102966,192.46,192.43,0.66]
[1761414982887,38.48102966,192.46,192.43,0.66]
[1761414985090,22.88,192.46,192.43,0.66]
[1761414986984,0.2,192.47,192.45,1.46080344]
[1761414987167,0.2,192.47,192.45,37.28080344]
[1761414987368,0.2,192.47,192.45,36.51]
[1761414992862,0.2,192.47,192.46,0.69]
[1761414996473,0.2,192.47,192.45,36.51]
[1761414996673,0.2,192.47,192.45,35.82]
[1761414996884,0.2,192.47,192.46,0.69]
[1761414997086,0.2,192.47,192.45,36.51]
[1761414997396,0.2,192.47,192.46,0.69]
[1761415003495,0.2,192.47,192.46,2.15080344]
[1761415003995,0.2,192.47,192.46,17.74696678]
[1761415004198,0.2,192.47,192.46,22.94285163]
[1761415022716,0.2,192.47,192.46,23.76199474]
[1761415047942,0.2,192.47,192.46,23.07199474]
[1761415048531,0.2,192.47,192.46,23.74199474]
[1761415066263,0.2,192.47,192.46,59.52199474]
[1761415068754,0.2,192.47,192.46,23.74199474]
[1761415068937,0.2,192.47,192.46,59.52199474]
[1761415070766,0.2,192.47,192.46,23.74199474]
[1761415070967,0.2,192.47,192.46,59.52199474]
[1761415071669,0.2,192.47,192.46,23.74199474]
[1761415071966,0.2,192.47,192.46,59.52199474]
[1761415077874,0.2,192.47,192.46,23.74199474]
[1761415078073,0.2,192.47,192.46,59.52199474]
[1761415079972,0.2,192.47,192.46,23.74199474]
[1761415080171,0.2,192.47,192.46,59.52199474]
[1761415080972,0.2,192.47,192.46,23.74199474]
[1761415081186,0.2,192.47,192.46,59.52199474]
[1761415081473,0.2,192.47,192.46,70.39846995]
[1761415083673,0.2,192.47,192.46,57.24204819]
[1761415083982,0.2,192.47,192.46,58.85199474]
[1761415084684,0.2,192.47,192.46,58.03121993]
[1761415085668,0.2,192.47,192.46,20.79204819]
[1761415085874,0.2,192.47,192.46,58.03121993]
[1761415086678,0.88,192.47,192.46,42.43505659]
[1761415087058,0.88,192.47,192.46,44.51443693]
[1761415093178,0.2,192.47,192.46,45.17443693]
[1761415093380,0.2,192.47,192.46,44.51443693]
[1761415097973,0.88,192.47,192.46,44.51443693]
[1761415098181,0.2,192.47,192.46,44.51443693]
[1761415100973,0.89,192.47,192.46,44.51443693]
[1761415105986,0.89,192.47,192.42,1.45917174]
[1761415106184,1.45917174,192.44,192.38,1.45917174]
[1761415106491,1.45917174,192.43,192.39,35.8]
[1761415106690,2.14917174,192.45,192.39,35.8]
[1761415106892,12.9958796,192.43,192.39,35.8]
[1761415107309,0.69,192.42,192.39,40.99773347]
[1761415107501,0.69,192.42,192.39,35.8]
[1761415109302,0.69,192.42,192.38,19.65284109]
[1761415109608,0.69,192.42,192.39,35.8]
[1761415111611,0.69,192.42,192.39,40.997771]
[1761415112713,0.69,192.42,192.38,14.45505134]
[1761415112891,0.69,192.42,192.39,35.8]
[1761415118820,21.48963158,192.42,192.39,35.8]
[1761415119294,0.69,192.41,192.39,35.8]
[1761415121892,16.29265245,192.42,192.39,35.8]
[1761415122602,0.69,192.41,192.39,35.8]
[1761415126704,16.29265245,192.42,192.39,35.8]
[1761415127417,0.69,192.41,192.39,35.8]
[1761415129406,16.29346396,192.41,192.39,35.8]
[1761415129912,0.69,192.4,192.39,35.8]
[1761415130711,16.26346396,192.41,192.39,35.8]
[1761415130901,0.66,192.4,192.39,35.8]
[1761415132102,16.26346396,192.41,192.39,35.8]
[1761415132302,15.60346396,192.41,192.39,35.8]
[1761415132524,0.66,192.4,192.39,35.8]
[1761415134123,15.60346396,192.41,192.39,35.8]
[1761415134124,16.26346396,192.41,192.39,35.8]
[1761415134429,0.66,192.4,192.39,35.8]
[1761415135322,15.60346396,192.41,192.39,35.8]
[1761415135527,16.26346396,192.41,192.39,35.8]
[1761415136907,0.66,192.4,192.39,35.8]
[1761415138024,15.60346396,192.41,192.39,35.8]
[1761415138222,16.26346396,192.41,192.39,35.8]
[1761415140337,5.9159266,192.46,192.4,0.72]
[1761415140621,15.60184101,192.44,192.41,37.25917174]
[1761415141006,15.60184101,192.44,192.41,37.97917174]
[1761415144535,16.32184101,192.44,192.41,37.97917174]
[1761415145431,16.32184101,192.44,192.41,36.52]
[1761415146440,0.72,192.44,192.41,36.52]
[1761415146739,15.60184101,192.43,192.41,36.52]
[1761415159450,15.60184101,192.43,192.41,35.8]
[1761415160144,16.26184101,192.43,192.41,35.8]
[1761415160446,15.60184101,192.43,192.41,35.8]
[1761415160652,5.85643039,192.44,192.41,35.8]
[1761415160844,15.60184101,192.42,192.41,35.8]
[1761415163356,5.85643039,192.44,192.41,36.51]
[1761415164455,5.85643039,192.44,192.41,35.8]
[1761415167139,5.85643039,192.44,192.41,36.51]
[1761415171457,5.19643039,192.44,192.41,35.8]
[1761415171644,0.66,192.43,192.41,35.8]
[1761415172549,5.85643039,192.44,192.41,35.8]
[1761415173261,5.85643039,192.44,192.41,36.51]
[1761415173767,0.66,192.43,192.41,35.8]
[1761415176559,0.66,192.43,192.39,36.51]
[1761415181650,5.85671768,192.43,192.4,0.71]
[1761415182663,5.85671768,192.43,192.39,35.8]
[1761415182969,5.85671768,192.43,192.39,36.51]
[1761415183364,5.85671768,192.43,192.39,35.8]
[1761415183557,5.85671768,192.43,192.4,0.71]
[1761415184572,0.66,192.43,192.4,0.71]
[1761415184768,5.85616118,192.45,192.4,8.18958865]
[1761415185076,20.79881363,192.45,192.4,2.99216337]
[1761415185277,0.66,192.44,192.4,2.99216337]
[1761415186162,5.85656102,192.44,192.4,2.99216337]
[1761415186476,21.45921347,192.44,192.4,2.99216337]
[1761415187063,5.85656102,192.44,192.4,2.99216337]
[1761415188381,5.85656102,192.44,192.4,0.71]
[1761415189961,21.45921347,192.44,192.4,0.71]
[1761415190880,5.85656102,192.44,192.4,0.71]
[1761415191081,21.45921347,192.44,192.4,0.71]
[1761415192884,20.79921347,192.44,192.4,0.71]
[1761415193176,0.66,192.43,192.4,0.71]
[1761415193362,21.45921347,192.44,192.4,0.71]
[1761415193560,21.45921347,192.44,192.39,40.99771353]
[1761415193561,0.66,192.43,192.39,40.99771353]
[1761415193783,0.66,192.43,192.39,41.71771353]
[1761415194082,0.66,192.43,192.4,0.72]
[1761415200062,0.66,192.43,192.39,5.19771353]
[1761415200266,0.66,192.43,192.39,40.99771353]
[1761415200991,0.66,192.43,192.39,41.71771353]
[1761415201168,5.85694567,192.43,192.39,35.8]
[1761415201488,15.60427557,192.42,192.39,35.8]
[1761415201688,16.32427557,192.42,192.39,35.8]
[1761415201890,0.72,192.41,192.39,35.8]
[1761415202268,5.19709581,192.42,192.39,36.52]
[1761415202687,21.52102182,192.43,192.4,0.72]
[1761415202864,20.80102182,192.43,192.4,0.72]
[1761415203491,20.80102182,192.43,192.39,35.8]
[1761415203679,5.91697439,192.42,192.39,36.52]
[1761415206480,5.19642485,192.44,192.39,36.52]
[1761415206685,15.60427557,192.42,192.39,36.52]
[1761415208694,1.46164447,192.41,192.31,12.99926258]
[1761415208884,1.46164447,192.41,192.35,0.72]
[1761415208885,22.88,192.39,192.35,0.72]
[1761415209192,22.88,192.39,192.35,36.52]
[1761415209380,15.60671088,192.38,192.35,36.52]
[1761415209694,15.60671088,192.38,192.36,0.72]
[1761415212871,20.80477184,192.38,192.36,0.72]
[1761415213074,20.80477184,192.38,192.35,36.52]
[1761415213896,20.80477184,192.38,192.35,35.8]
[1761415214095,0.72,192.37,192.35,35.8]
[1761415215288,15.60671088,192.38,192.35,35.8]
[1761415215593,5.19807006,192.38,192.35,36.52]
[1761415215795,20.80559288,192.38,192.35,36.52]
[1761415216175,21.52559288,192.38,192.35,36.52]
[1761415216700,20.80559288,192.38,192.35,36.52]
[1761415217679,20.80559288,192.38,192.36,0.72]
[1761415218693,15.60752282,192.38,192.36,2.18164447]
[1761415218889,0.72,192.43,192.37,2.18164447]
[1761415218890,5.19696497,192.42,192.37,2.18164447]
[1761415219096,15.60427557,192.41,192.37,2.18164447]
[1761415219297,15.60427557,192.41,192.38,0.72]
[1761415219685,0.72,192.4,192.36,0.72]
[1761415219888,0.72,192.4,192.35,37.98164447]
[1761415220087,0.72,192.4,192.36,0.69]
[1761415220294,16.32427557,192.4,192.36,0.69]
[1761415221397,21.52190757,192.4,192.36,0.69]
[1761415223483,5.917632,192.4,192.36,0.69]
[1761415225402,15.60589902,192.39,192.36,0.69]
[1761415227288,16.26589902,192.39,192.36,0.69]
[1761415227603,15.60589902,192.39,192.35,42.50048511]
[1761415227904,5.197632,192.4,192.35,0.69]
[1761415227905,0.66,192.38,192.35,0.69]
[1761415228703,15.60589902,192.37,192.33,7.351004]
[1761415228903,15.60589902,192.37,192.34,0.69]
[1761415230702,5.19778663,192.39,192.34,5.88907666]
[1761415231089,15.60589902,192.38,192.35,0.69]
[1761415235612,15.60589902,192.38,192.36,1.46164447]
[1761415235821,0.86,192.47,192.37,35.84]
[1761415235999,15.60102966,192.46,192.42,1.46164447]
[1761415236403,16.26102966,192.46,192.43,0.69]
[1761415237295,16.26102966,192.46,192.42,1.46164447]
[1761415237296,0.66,192.45,192.42,1.46164447]
[1761415237508,0.66,192.45,192.42,2.15164447]
[1761415243026,20.79691683,192.46,192.42,2.15164447]
[1761415243213,21.45691683,192.46,192.42,2.15164447]
[1761415245330,21.45691683,192.46,192.43,1.46164447]
[1761415246420,0.66,192.45,192.43,1.46164447]
[1761415248709,0.2,192.47,192.44,0.69]
[1761415248913,0.2,192.47,192.46,1.46164447]
[1761415249326,0.2,192.47,192.46,2.15164447]
[1761415250032,0.2,192.47,192.46,7.34752932]
[1761415253230,0.2,192.48,192.47,10.87647521]
[1761415253434,0.2,192.48,192.47,13.02811968]
[1761415254140,0.2,192.48,192.47,15.10695968]
[1761415255739,0.2,192.48,192.47,20.30257458]
[1761415255926,0.2,192.48,192.47,7.9644549]
[1761415256136,0.2,192.48,192.47,9.42609937]
[1761415258248,0.2,192.5,192.49,22.88]
[1761415258547,0.2,192.5,192.49,60.24164447]
[1761415258722,0.2,192.5,192.49,60.93164447]
[1761415258924,0.2,192.5,192.49,63.01037644]
[1761415259434,0.2,192.5,192.49,68.2054515]
[1761415261333,0.2,192.5,192.49,66.74380703]
[1761415261541,0.2,192.5,192.49,66.12671953]
[1761415266678,0.2,192.5,192.49,68.20566758]
[1761415268870,0.2,192.5,192.49,43.17402311]
[1761415269039,0.86,192.5,192.49,44.63566758]
[1761415269236,0.2,192.5,192.49,44.63566758]
[1761415270767,0.2,192.5,192.49,45.45355957]
[1761415272054,0.86,192.5,192.49,45.45355957]
[1761415272253,0.2,192.5,192.49,45.45355957]
[1761415273463,0.2,192.5,192.49,43.17402311]
[1761415273667,0.86,192.5,192.47,7.47491122]
[1761415273972,0.86,192.5,192.47,5.19537476]
[1761415274144,0.66,192.49,192.47,5.19537476]
[1761415277256,0.2,192.5,192.48,38.88953646]
[1761415277452,0.2,192.5,192.49,2.27953646]
[1761415278051,0.2,192.5,192.49,4.35859256]
[1761415278365,0.2,192.5,192.49,9.55366762]
[1761415282264,0.2,192.5,192.49,7.27413116]
[1761415282454,0.2,192.5,192.49,9.55366762]
[1761415283854,0.2,192.5,192.49,7.47461152]
[1761415284164,1e-08,192.5,192.49,8.19461152]
[1761415294482,1e-08,192.52,192.51,22.88]
[1761415294664,1e-08,192.52,192.51,61.05953646]
[1761415294859,1e-08,192.52,192.51,61.77953646]
[1761415296087,1e-08,192.52,192.51,66.9740718]
[1761415308880,1e-08,192.52,192.51,66.2540718]
[1761415310182,0.66000001,192.52,192.51,43.3740718]
[1761415310492,0.66000001,192.52,192.51,7.4740718]
[1761415320092,1e-08,192.52,192.51,7.4740718]
[1761415320401,0.70000001,192.52,192.51,7.4740718]
[1761415322101,1e-08,192.52,192.51,7.4740718]
[1761415322604,1e-08,192.52,192.51,5.19453534]
[1761415322799,0.70000001,192.52,192.51,7.4740718]
[1761415323209,1e-08,192.52,192.51,8.1640718]
[1761415323587,1e-08,192.52,192.51,7.4740718]
[1761415330826,1e-08,192.52,192.51,6.65308992]
[1761415333122,1e-08,192.52,192.51,5.19453534]
[1761415333327,0.70000001,192.52,192.51,6.65308992]
[1761415341518,0.70000001,192.52,192.51,5.19453534]
[1761415341720,0.70000001,192.52,192.49,6.65336931]
[1761415342522,0.70000001,192.52,192.51,5.19453534]
[1761415344041,0.70000001,192.52,192.51,1.45855458]
[1761415344941,0.70000001,192.52,192.48,18.18364749]
[1761415345142,0.70000001,192.52,192.51,6.65308992]
[1761415353732,1e-08,192.52,192.51,6.65308992]
[1761415353940,0.68000001,192.52,192.51,6.65308992]
[1761415357850,1e-08,192.52,192.51,7.36308992]
[1761415363042,1e-08,192.52,192.51,43.24308992]
[1761415364280,1e-08,192.52,192.51,41.07453534]
[1761415364440,0.68000001,192.52,192.51,42.53308992]
[1761415366245,0.68000001,192.52,192.51,6.65308992]
[1761415367140,0.68000001,192.52,192.51,1.45855458]
[1761415368346,0.68000001,192.52,192.51,6.65308992]
[1761415370872,1e-08,192.52,192.51,6.65308992]
[1761415373964,1e-08,192.52,192.51,7.33308992]
[1761415374353,1e-08,192.52,192.51,6.65308992]
[1761415375776,0.70000001,192.52,192.51,6.65308992]
[1761415377374,1e-08,192.52,192.51,6.65308992]
[1761415386880,0.72000001,192.52,192.51,6.65308992]
[1761415387078,1e-08,192.52,192.51,6.65308992]
[1761415387860,1e-08,192.52,192.48,48.86830252]
[1761415387861,0.72000001,192.52,192.48,5.19534292]
[1761415389264,0.72000001,192.52,192.48,5.19534497]
[1761415390062,5.9144371,192.52,192.47,5.19557394]
[1761415390456,0.72,192.51,192.47,5.19557394]
[1761415391783,0.72,192.51,192.47,7.47618859]
[1761415399088,0.72,192.51,192.45,18.18589697]
[1761415399282,0.72,192.51,192.47,2.28061465]
[1761415400290,0.72,192.51,192.47,7.47621195]
[1761415413395,0.72,192.51,192.45,13.68974213]
[1761415413396,0.72,192.51,192.46,5.19588485]
[1761415413587,5.9145377,192.51,192.46,7.4764995]
[1761415414089,0.71,192.5,192.46,7.4764995]
[1761415415801,0.71,192.5,192.43,5.89664887]
[1761415415802,8.18552403,192.5,192.43,5.89664887]
[1761415415999,8.18552403,192.5,192.43,7.47726352]
[1761415416195,0.71,192.49,192.43,7.47726352]
[1761415416823,5.19534497,192.48,192.43,5.19664887]
[1761415417099,7.47595962,192.48,192.42,49.93094056]
[1761415417302,0.71,192.47,192.42,11.79032591]
[1761415417494,2.99061465,192.47,192.42,6.59338024]
[1761415417688,2.99061465,192.47,192.41,7.47779227]
[1761415417889,0.71,192.46,192.41,7.47779227]